bitfinex/quotes_SOLUSD_20260108
["timestamp","ask_amount","ask_price","bid_price","bid_amount"]
[1767874125134,3.95106997,134.25,134.21,0.30884909]
[1767874125320,3.95106997,134.25,134.21,7.75980212]
[1767874125516,0.40026431,134.25,134.21,7.45095303]
[1767874125710,11.3999537,134.25,134.2,11.00210757]
[1767874126727,11.3999537,134.25,134.21,0.70884909]
[1767874127142,7.84914804,134.25,134.21,0.70884909]
[1767874127341,11.3999537,134.25,134.21,0.70884909]
[1767874127646,3.95106997,134.25,134.21,0.70884909]
[1767874128015,11.39990108,134.25,134.21,0.70884909]
[1767874128720,0.40026431,134.25,134.22,0.70884909]
[1767874128923,24.59923257,134.26,134.22,0.70884909]
[1767874129236,0.69481875,134.25,134.21,11.71064841]
[1767874129437,0.69481875,134.28,134.24,3.55080566]
[1767874129736,17.84562441,134.29,134.24,3.55080566]
[1767874129936,0.69481875,134.27,134.22,3.55080566]
[1767874130138,4.24562441,134.27,134.22,3.55080566]
[1767874131125,11.69348106,134.27,134.22,11.00121628]
[1767874131326,8.1426754,134.27,134.22,11.00121628]
[1767874131512,11.69348106,134.27,134.23,0.70884909]
[1767874131935,11.69348106,134.27,134.19,0.28432314]
[1767874131936,0.69481875,134.26,134.21,0.70884909]
[1767874132116,0.69481875,134.23,134.19,7.45199108]
[1767874132317,0.69481875,134.23,134.19,8.16084017]
[1767874132633,4.24562441,134.25,134.2,0.70884909]
[1767874132834,4.24562441,134.25,134.21,0.70884909]
[1767874133033,14.29481875,134.26,134.22,0.70884909]
[1767874133232,25.29391411,134.26,134.22,0.70884909]
[1767874133425,0.69481875,134.24,134.21,0.70884909]
[1767874134840,4.24562441,134.24,134.2,7.45145113]
[1767874135140,0.69481875,134.23,134.19,11.00277454]
[1767874135345,0.69481875,134.23,134.19,8.16081797]
[1767874135647,4.24562441,134.23,134.19,0.70884909]
[1767874135832,0.69481875,134.23,134.19,0.70884909]
[1767874136028,3.55080566,134.22,134.19,0.70884909]
[1767874136231,4.24562441,134.23,134.19,0.70884909]
[1767874137045,0.69481875,134.23,134.19,0.70884909]
[1767874137346,4.24562441,134.23,134.19,0.70884909]
[1767874137644,0.69481875,134.23,134.19,0.70884909]
[1767874137818,4.24562441,134.23,134.19,0.70884909]
[1767874138017,0.69481875,134.22,134.18,0.70884909]
[1767874138244,4.24562441,134.22,134.18,0.70884909]
[1767874138440,0.69481875,134.22,134.18,0.70884909]
[1767874138640,3.55080566,134.22,134.18,0.70884909]
[1767874138940,7.44994029,134.23,134.17,11.10371545]
[1767874138941,11.69520027,134.24,134.19,4.25965475]
[1767874139136,0.69481875,134.24,134.2,4.25965475]
[1767874139928,0.69481875,134.23,134.19,4.25965475]
[1767874140142,4.24562441,134.23,134.19,0.70884909]
[1767874140338,0.69481875,134.22,134.18,0.70884909]
[1767874140540,0.69481875,134.21,134.17,8.2618474]
[1767874140734,4.24562441,134.21,134.17,8.2618474]
[1767874141055,0.69481875,134.23,134.19,11.71166232]
[1767874141263,0.69481875,134.22,134.18,0.70884909]
[1767874141458,0.69481875,134.22,134.18,8.16132534]
[1767874141753,0.69481875,134.22,134.18,11.712131]
[1767874141931,17.84562441,134.24,134.19,11.71173185]
[1767874142434,14.29481875,134.24,134.19,11.71173185]
[1767874142644,25.29503763,134.24,134.19,11.71173185]
[1767874142941,0.69741433,134.23,134.19,11.71173185]
[1767874143142,0.69741433,134.23,134.19,8.16092619]
[1767874143744,0.69741433,134.23,134.19,11.71173185]
[1767874143921,0.69741433,134.23,134.19,8.16092619]
[1767874144128,0.7041197,134.22,134.17,0.78634195]
[1767874144329,0.7041197,134.22,134.18,8.13890393]
[1767874144535,0.7041197,134.23,134.19,8.13833717]
[1767874144934,4.25492536,134.22,134.18,0.68634195]
[1767874145949,4.25492536,134.22,134.18,8.1389794]
[1767874146148,0.7041197,134.22,134.18,11.68978506]
[1767874146333,4.25492536,134.21,134.17,0.78634195]
[1767874146534,0.7041197,134.21,134.17,0.78634195]
[1767874147233,0.7041197,134.22,134.18,0.68634195]
[1767874147644,4.25492536,134.22,134.18,0.68634195]
[1767874147947,11.7055042,134.22,134.18,0.68634195]
[1767874148325,0.7041197,134.21,134.17,11.79029197]
[1767874148527,0.7041197,134.2,134.17,0.1]
[1767874149051,4.25492536,134.2,134.17,0.1]
[1767874149237,0.7041197,134.18,134.17,0.1]
[1767874149544,0.7041197,134.17,134.13,8.1415987]
[1767874149746,0.7041197,134.17,134.14,0.68634195]
[1767874150249,4.25492536,134.17,134.13,8.1415987]
[1767874150543,7.45271551,134.18,134.14,0.68634195]
[1767874150749,0.7041197,134.18,134.14,8.14109212]
[1767874150956,0.7041197,134.18,134.14,11.69189778]
[1767874151253,0.7041197,134.18,134.14,8.14109212]
[1767874151552,0.7041197,134.18,134.14,11.69189778]
[1767874151724,0.67411971,134.18,134.14,11.69189778]
[1767874153349,0.67411971,134.18,134.14,4.23714761]
[1767874153546,0.67411971,134.18,134.14,11.69194853]
[1767874154138,0.67411971,134.18,134.14,8.14114287]
[1767874154339,0.67411971,134.18,134.14,11.69194853]
[1767874155035,0.67411971,134.18,134.15,0.68634195]
[1767874155240,0.7041197,134.24,134.18,0.68634195]
[1767874155434,4.25492536,134.2,134.15,0.68634195]
[1767874155735,4.25492536,134.2,134.16,0.68634195]
[1767874156043,0.7041197,134.21,134.17,0.68634195]
[1767874156244,4.25492536,134.21,134.17,0.68634195]
[1767874156426,0.7041197,134.21,134.17,0.68634195]
[1767874156828,4.25492536,134.21,134.17,0.68634195]
[1767874157023,4.25492536,134.21,134.17,8.13936027]
[1767874157229,0.7041197,134.21,134.17,8.13936027]
[1767874157743,13.6,134.23,134.19,0.68634195]
[1767874157744,0.7041197,134.23,134.19,0.68634195]
[1767874158142,4.25492536,134.23,134.19,0.68634195]
[1767874158540,0.7041197,134.23,134.19,0.68634195]
[1767874158746,4.25492536,134.23,134.19,0.68634195]
[1767874158938,0.7041197,134.2,134.16,8.14002143]
[1767874159138,4.25492536,134.21,134.17,8.13951869]
[1767874159537,0.7041197,134.21,134.17,8.13951869]
[1767874160523,0.7041197,134.24,134.2,0.68634195]
[1767874160728,0.7041197,134.24,134.21,0.68634195]
[1767874161036,0.7041197,134.24,134.2,0.68634195]
[1767874161241,0.7041197,134.24,134.2,8.13786072]
[1767874161447,0.7041197,134.24,134.21,0.68634195]
[1767874161748,0.7041197,134.26,134.22,4.23714761]
[1767874162048,0.7041197,134.29,134.25,4.23714761]
[1767874162223,0.7041197,134.3,134.26,0.68634195]
[1767874162426,0.7041197,134.3,134.26,4.23714761]
[1767874162640,24.02363735,134.32,134.27,0.68634195]
[1767874162839,21.74927978,134.32,134.27,2.96069952]
[1767874163044,24.02363735,134.32,134.27,2.96069952]
[1767874163348,0.7041197,134.35,134.31,2.27435757]
[1767874163548,2.47435757,134.37,134.33,2.27435757]
[1767874163549,0.9041197,134.37,134.33,2.27435757]
[1767874163846,0.9041197,134.37,134.33,2.96069952]
[1767874164032,7.64214673,134.37,134.32,0.68634195]
[1767874164237,10.620624,134.37,134.32,0.68634195]
[1767874164430,8.34626643,134.37,134.32,0.68634195]
[1767874164750,0.2,134.37,134.33,2.96069952]
[1767874165148,0.2,134.37,134.34,0.68634195]
[1767874166853,0.7041197,134.36,134.32,0.68634195]
[1767874167237,0.7041197,134.36,134.32,10.40550418]
[1767874167744,0.2,134.37,134.32,10.40550418]
[1767874167745,0.9041197,134.37,134.32,10.40550418]
[1767874168349,0.9041197,134.37,134.33,0.68634195]
[1767874168553,0.2,134.37,134.33,2.96069952]
[1767874168858,0.9041197,134.37,134.33,2.96069952]
[1767874169157,0.9041197,134.37,134.32,10.40550418]
[1767874169656,0.9041197,134.37,134.33,0.68634195]
[1767874170337,0.9041197,134.37,134.33,8.13069058]
[1767874170535,0.65333263,134.41,134.36,0.68634195]
[1767874170740,2.97847727,134.4,134.34,2.55868071]
[1767874171254,2.97847727,134.4,134.34,2.27435757]
[1767874171642,0.7041197,134.38,134.33,7.44434863]
[1767874171957,0.7041197,134.38,134.33,9.7187062]
[1767874172341,2.27435757,134.39,134.34,2.27435757]
[1767874172545,2.93800696,134.39,134.34,2.27435757]
[1767874172856,2.93800696,134.39,134.34,2.93817018]
[1767874173057,2.27435757,134.38,134.34,0.66381261]
[1767874173259,10.37905151,134.39,134.34,0.66381261]
[1767874173554,10.37905151,134.39,134.34,2.93817018]
[1767874173938,10.37905151,134.39,134.34,10.38188686]
[1767874174139,8.10469394,134.39,134.34,0.66381261]
[1767874174346,0.66364939,134.36,134.32,10.38285746]
[1767874174954,2.27435757,134.37,134.31,13.6]
[1767874174955,0.66364939,134.37,134.33,10.38241798]
[1767874175656,0.66364939,134.37,134.33,10.38229804]
[1767874175859,0.66364939,134.37,134.33,8.10794047]
[1767874176059,0.66364939,134.37,134.33,10.38229804]
[1767874176747,8.10588177,134.37,134.33,0.66381261]
[1767874177141,10.38023934,134.37,134.33,0.66381261]
[1767874177345,0.66364939,134.36,134.32,9.71887611]
[1767874177959,0.66364939,134.36,134.32,2.27435757]
[1767874178260,0.66364939,134.36,134.32,2.93817018]
[1767874179566,0.66364939,134.36,134.32,10.38292179]
[1767874179745,0.66364939,134.36,134.32,8.10856422]
[1767874179945,0.66364939,134.36,134.32,10.38292179]
[1767874180248,0.66364939,134.35,134.31,13.6]
[1767874180563,0.66364939,134.35,134.31,14.26381261]
[1767874180865,0.66364939,134.35,134.31,23.98361211]
[1767874181065,0.66364939,134.36,134.32,9.71921826]
[1767874182751,0.66364939,134.36,134.32,10.38303087]
[1767874183157,0.66364939,134.36,134.32,0.66381261]
[1767874183355,0.66364939,134.35,134.31,23.98339199]
[1767874185064,0.66364939,134.33,134.28,0.80597418]
[1767874185261,2.93800696,134.33,134.29,7.44623126]
[1767874185470,0.66364939,134.33,134.29,7.44623126]
[1767874185669,0.66364939,134.33,134.29,8.11004387]
[1767874185965,0.66364939,134.33,134.3,7.44592217]
[1767874188362,2.27435757,134.35,134.3,7.44592217]
[1767874188547,0.66364939,134.34,134.3,10.38409235]
[1767874188750,2.27435757,134.35,134.31,0.66381261]
[1767874189062,0.66364939,134.35,134.31,0.66381261]
[1767874189247,0.66364939,134.34,134.3,8.10973478]
[1767874189446,0.66364939,134.34,134.3,10.38409235]
[1767874189647,0.66364939,134.34,134.3,8.10973478]
[1767874189850,0.66364939,134.34,134.3,10.38409235]
[1767874190049,0.66364939,134.34,134.3,9.72027974]
[1767874191872,0.66364939,134.37,134.32,2.27435757]
[1767874192075,0.66364939,134.36,134.32,2.27435757]
[1767874192452,7.44158356,134.38,134.27,0.28432314]
[1767874192453,0.66364939,134.34,134.29,0.66381261]
[1767874192664,0.66364939,134.34,134.3,10.38414081]
[1767874192970,0.66364939,134.36,134.33,2.27435757]
[1767874193357,0.66364939,134.34,134.29,2.27435757]
[1767874193555,0.66364939,134.33,134.28,23.98500703]
[1767874194271,0.66364939,134.32,134.28,23.98500703]
[1767874195550,0.66364939,134.32,134.29,0.66381261]
[1767874195956,0.66364939,134.32,134.29,8.110383]
[1767874196176,0.66364939,134.32,134.29,10.38474057]
[1767874196384,0.66364939,134.32,134.29,0.66381261]
[1767874197058,2.93800696,134.32,134.28,0.66381261]
[1767874197955,2.93800696,134.32,134.27,23.32153213]
[1767874197956,0.66364939,134.31,134.26,0.94813575]
[1767874198157,0.66364939,134.29,134.25,0.66381261]
[1767874198376,0.66364939,134.29,134.24,0.66381261]
[1767874198576,0.66364939,134.29,134.25,7.44839422]
[1767874199072,0.66364939,134.29,134.25,8.11220683]
[1767874199671,0.66364939,134.29,134.25,10.3865644]
[1767874199873,0.66364939,134.29,134.25,8.11220683]
[1767874200588,2.93800696,134.29,134.25,8.11220683]
[1767874201055,0.66364939,134.29,134.25,8.11220683]
[1767874201506,0.66364939,134.27,134.23,0.66381261]
[1767874201784,2.27435757,134.26,134.21,10.38888581]
[1767874201994,2.27435757,134.26,134.22,7.45038231]
[1767874202161,7.44795959,134.27,134.21,8.11456653]
[1767874202480,2.27435757,134.26,134.21,8.11456653]
[1767874202863,2.27435757,134.25,134.21,8.11456653]
[1767874203070,7.44795959,134.27,134.17,0.66006012]
[1767874203280,2.27435757,134.21,134.17,8.11303123]
[1767874203486,0.28432314,134.26,134.17,8.11303123]
[1767874203665,2.99036971,134.22,134.18,7.55257861]
[1767874205296,0.71601214,134.22,134.18,7.55257861]
[1767874205485,0.71601214,134.22,134.18,0.1]
[1767874205790,0.71601214,134.21,134.18,0.1]
[1767874206983,0.68601215,134.21,134.18,0.1]
[1767874207181,9.72564989,134.21,134.18,0.1]
[1767874207486,7.45129232,134.21,134.18,0.1]
[1767874207673,2.27435757,134.2,134.18,0.1]
[1767874208067,2.27435757,134.21,134.18,0.1]
[1767874208289,9.72504502,134.22,134.18,0.1]
[1767874208566,7.45068745,134.22,134.18,0.1]
[1767874208772,9.72504502,134.22,134.18,0.1]
[1767874208969,0.71601214,134.22,134.18,0.1]
[1767874209170,0.71601214,134.22,134.18,2.37435757]
[1767874209686,0.71601214,134.22,134.18,3.06091749]
[1767874210297,0.71601214,134.22,134.18,10.51314554]
[1767874210772,2.99036971,134.24,134.19,0.68655992]
[1767874210967,0.71601214,134.24,134.2,0.68655992]
[1767874212297,0.71601214,134.24,134.2,8.13793701]
[1767874212881,16.59036971,134.26,134.21,0.68655992]
[1767874213779,24.03861453,134.26,134.21,0.68655992]
[1767874215810,21.76425696,134.26,134.21,8.1375643]
[1767874216108,0.71601214,134.22,134.19,8.13847622]
[1767874216401,0.71601214,134.25,134.2,8.13801737]
[1767874216616,2.99036971,134.25,134.21,8.13756203]
[1767874217404,0.71601214,134.24,134.21,0.68655992]
[1767874217614,0.71601214,134.24,134.2,8.1379398]
[1767874218694,2.99036971,134.25,134.21,0.68655992]
[1767874219582,2.99036971,134.25,134.21,8.13727054]
[1767874220705,0.71601214,134.26,134.22,0.68655992]
[1767874220907,0.71601214,134.26,134.2,8.13791263]
[1767874220908,0.71601214,134.25,134.2,8.13791263]
[1767874221207,0.71601214,134.24,134.2,8.13791263]
[1767874221781,0.71601214,134.24,134.2,7.45133502]
[1767874222297,0.71601214,134.24,134.2,8.13789494]
[1767874223002,4.27321157,134.26,134.21,0.68655992]
[1767874223186,0.71601214,134.25,134.19,21.051789]
[1767874223500,0.71601214,134.23,134.19,8.13834892]
[1767874224905,0.71601214,134.23,134.19,11.69554835]
[1767874225083,0.71601214,134.23,134.2,0.68655992]
[1767874225287,0.71601214,134.24,134.2,4.24375935]
[1767874225507,0.71601214,134.24,134.21,4.24375935]
[1767874226190,21.04848975,134.26,134.21,11.69461886]
[1767874226393,21.76450189,134.26,134.22,0.68655992]
[1767874227083,0.71601214,134.25,134.21,11.69461886]
[1767874229293,0.71601214,134.25,134.19,0.68655992]
[1767874229294,0.71601214,134.24,134.19,0.68655992]
[1767874229499,0.71601214,134.23,134.19,0.68655992]
[1767874229708,0.71601214,134.23,134.19,4.24375935]
[1767874230305,0.71601214,134.23,134.2,8.13803257]
[1767874230808,0.71601214,134.25,134.21,4.24375935]
[1767874231684,14.31601214,134.26,134.22,0.68655992]
[1767874232304,0.68278661,134.25,134.22,0.68655992]
[1767874232504,0.68278661,134.25,134.22,7.45004477]
[1767874234408,0.68278661,134.25,134.2,8.16915467]
[1767874234590,0.68278661,134.24,134.2,8.16915467]
[1767874234790,0.68278661,134.24,134.2,11.7263541]
[1767874236399,0.68278661,134.24,134.2,8.16915467]
[1767874236909,0.68278661,134.24,134.2,11.7263541]
[1767874239216,0.68278661,134.24,134.21,8.16877995]
[1767874240605,0.68278661,134.24,134.2,7.45156482]
[1767874240806,0.68278661,134.24,134.2,8.16945267]
[1767874241006,0.68278661,134.24,134.2,11.7266521]
[1767874241793,0.68278661,134.24,134.18,0.1]
[1767874241998,0.68278661,134.24,134.18,0.81788785]
[1767874241999,0.68278661,134.23,134.18,0.81788785]
[1767874242195,0.68278661,134.23,134.18,4.37508728]
[1767874242807,0.68278661,134.23,134.19,7.45208397]
[1767874243519,0.68278661,134.23,134.15,6.22114528]
[1767874243520,0.68278661,134.19,134.14,0.71788785]
[1767874243700,0.68278661,134.19,134.15,7.45428733]
[1767874243701,3.55719943,134.19,134.15,7.45428733]
[1767874243901,3.55719943,134.2,134.15,11.01148676]
[1767874244217,26.07489692,134.23,134.15,7.45428733]
[1767874244409,3.55719943,134.2,134.15,7.45428733]
[1767874244610,3.55719943,134.2,134.15,8.17217518]
[1767874245603,0.68278661,134.19,134.15,8.17217518]
[1767874246200,0.68278661,134.19,134.15,11.72937461]
[1767874246702,0.68278661,134.19,134.15,7.45428733]
[1767874246900,0.68278661,134.18,134.14,8.17259825]
[1767874247102,0.68278661,134.18,134.14,11.72979768]
[1767874247316,0.68278661,134.18,134.14,8.17259825]
[1767874247533,0.68278661,134.18,134.14,11.72979768]
[1767874248208,0.68278661,134.18,134.14,8.17259825]
[1767874248408,0.68278661,134.18,134.14,11.72979768]
[1767874249508,0.68278661,134.18,134.14,8.17259825]
[1767874249903,0.68278661,134.18,134.14,11.72979768]
[1767874251033,0.68278661,134.18,134.15,3.55719943]
[1767874251331,4.23998604,134.2,134.16,0.71788785]
[1767874251527,0.68278661,134.2,134.16,0.71788785]
[1767874251727,0.68278661,134.2,134.16,4.27508728]
[1767874252032,0.68278661,134.22,134.18,0.71788785]
[1767874252338,0.68278661,134.22,134.17,4.27508728]
[1767874252826,0.68278661,134.22,134.18,7.45267551]
[1767874253928,0.68278661,134.19,134.16,7.4534891]
[1767874254229,0.68278661,134.19,134.16,8.17137695]
[1767874254408,0.68278661,134.2,134.16,8.17137695]
[1767874254820,4.23998604,134.2,134.16,8.17137695]
[1767874255221,0.68278661,134.2,134.16,8.17137695]
[1767874258131,0.68278661,134.2,134.16,11.72857638]
[1767874258436,0.68278661,134.2,134.17,0.71788785]
[1767874259222,0.68278661,134.2,134.17,8.17077014]
[1767874259629,0.68278661,134.22,134.18,0.71788785]
[1767874260336,11.00731672,134.23,134.19,0.71788785]
[1767874260337,0.68278661,134.23,134.19,0.71788785]
[1767874260634,4.23998604,134.22,134.18,0.71788785]
[1767874260838,0.68278661,134.21,134.17,21.77077014]
[1767874261743,0.68278661,134.21,134.17,25.32796957]
[1767874262038,0.68278661,134.22,134.18,4.27508728]
[1767874262244,0.68278661,134.22,134.19,0.6673806]
[1767874262431,0.70637958,134.23,134.19,4.22458003]
[1767874263023,0.70637958,134.23,134.19,0.6673806]
[1767874263223,0.70637958,134.23,134.19,8.11937461]
[1767874263424,0.70637958,134.23,134.19,11.67657404]
[1767874263820,0.70637958,134.23,134.2,0.71761766]
[1767874264028,0.69697418,134.24,134.2,0.71761766]
[1767874264250,0.69697418,134.24,134.2,4.27481709]
[1767874264937,14.29697418,134.25,134.21,4.27481709]
[1767874265722,14.29697418,134.25,134.21,11.72576657]
[1767874266022,0.69697418,134.24,134.21,4.27481709]
[1767874266222,0.69697418,134.24,134.21,11.72582416]
[1767874267135,14.29697418,134.25,134.21,8.16862473]
[1767874267727,0.69697418,134.24,134.21,8.16862473]
[1767874267981,0.69697418,134.21,134.16,0.71761766]
[1767874268243,0.69697418,134.21,134.14,0.71761766]
[1767874268448,0.28432314,134.23,134.14,0.71761766]
[1767874268449,4.25417361,134.18,134.14,8.17218437]
[1767874268639,4.25417361,134.18,134.13,18.63857693]
[1767874268640,4.25417361,134.18,134.15,8.17193739]
[1767874268821,0.69697418,134.18,134.15,0.71761766]
[1767874269021,4.25417361,134.19,134.15,0.71761766]
[1767874269423,4.25417361,134.19,134.15,8.17176453]
[1767874270926,0.69697418,134.19,134.15,8.17176453]
[1767874271133,4.25417361,134.19,134.15,8.17176453]
[1767874271333,0.69697418,134.18,134.13,0.71761766]
[1767874271740,0.69697418,134.17,134.12,28.85718794]
[1767874271933,0.69697418,134.16,134.12,17.12641858]
[1767874272330,0.69697418,134.13,134.12,17.12641858]
[1767874272526,3.55719943,134.14,134.12,15.88724158]
[1767874272743,7.45290378,134.18,134.12,15.88724158]
[1767874272744,13.6,134.16,134.12,15.88724158]
[1767874272956,3.55719943,134.14,134.12,15.88724158]
[1767874273156,13.6,134.16,134.12,15.2902674]
[1767874273362,21.05290378,134.18,134.12,16.00788506]
[1767874273541,3.55719943,134.17,134.12,16.00788506]
[1767874273868,3.55719943,134.16,134.12,16.00788506]
[1767874274077,7.45369127,134.17,134.12,16.00788506]
[1767874274262,21.05277021,134.18,134.13,0.71761766]
[1767874274440,3.55719943,134.17,134.13,0.71761766]
[1767874274635,3.55719943,134.16,134.12,15.2902674]
[1767874274839,3.55719943,134.16,134.12,16.00788506]
[1767874275153,39.68445898,134.18,134.12,16.00788506]
[1767874275458,21.05277021,134.18,134.13,0.71761766]
[1767874275661,3.55719943,134.17,134.13,0.71761766]
[1767874275956,21.05268607,134.18,134.13,0.71761766]
[1767874276269,21.05280119,134.18,134.13,0.71761766]
[1767874276564,24.61000062,134.18,134.13,0.71761766]
[1767874277064,3.55719943,134.17,134.13,0.71761766]
[1767874277264,21.05280119,134.18,134.13,0.71761766]
[1767874277466,3.55719943,134.17,134.13,0.71761766]
[1767874277963,21.05280119,134.18,134.13,0.71761766]
[1767874278267,17.15719943,134.18,134.14,0.71761766]
[1767874278656,13.6,134.18,134.14,0.71761766]
[1767874279162,7.45135711,134.21,134.15,3.55719943]
[1767874279359,3.55719943,134.2,134.16,0.71761766]
[1767874280066,7.45135711,134.21,134.16,0.71761766]
[1767874280243,3.55719943,134.2,134.16,0.71761766]
[1767874280441,7.45135711,134.21,134.16,0.71761766]
[1767874280837,7.45135711,134.21,134.16,8.1713732]
[1767874281052,11.00855654,134.21,134.16,8.1713732]
[1767874281258,11.00855654,134.21,134.16,0.71761766]
[1767874281460,7.45135711,134.21,134.17,0.71761766]
[1767874281754,3.55719943,134.2,134.17,0.71761766]
[1767874281961,7.45135711,134.21,134.17,0.71761766]
[1767874282278,11.00855654,134.21,134.17,0.71761766]
[1767874282441,21.07053704,134.22,134.17,0.71761766]
[1767874282642,11.00773647,134.22,134.17,0.71761766]
[1767874282868,7.45053704,134.22,134.18,0.71761766]
[1767874283247,24.62721122,134.23,134.18,0.71761766]
[1767874284061,3.55719943,134.22,134.18,0.71761766]
[1767874284247,3.55719943,134.19,134.13,0.71761766]
[1767874284449,7.45056771,134.22,134.14,0.71761766]
[1767874284450,13.62,134.2,134.14,0.71761766]
[1767874284653,2.27873079,134.19,134.14,0.71761766]
[1767874285049,13.62,134.2,134.14,0.71761766]
[1767874285256,2.27873079,134.19,134.14,0.71761766]
[1767874285552,13.62,134.2,134.14,0.71761766]
[1767874285865,2.27873079,134.18,134.14,0.71761766]
[1767874286056,13.62,134.2,134.14,0.71761766]
[1767874286263,2.27873079,134.19,134.15,0.71761766]
[1767874287169,21.07194381,134.2,134.15,0.71761766]
[1767874287381,2.27873079,134.19,134.15,0.71761766]
[1767874289667,2.27873079,134.19,134.14,7.45468028]
[1767874289864,2.27873079,134.15,134.12,1e-08]
[1767874290069,13.62,134.15,134.12,1e-08]
[1767874290285,2.27873079,134.13,134.12,1e-08]
[1767874290496,2.27873079,134.14,134.12,1e-08]
[1767874290667,13.62,134.15,134.12,1e-08]
[1767874290868,15.89873079,134.15,134.12,1e-08]
[1767874291202,2.27873079,134.14,134.12,1e-08]
[1767874291379,9.73364861,134.14,134.12,1e-08]
[1767874291715,2.27873079,134.13,134.11,0.71761766]
[1767874291886,2.27873079,134.13,134.11,0.67011082]
[1767874292200,2.27873079,134.13,134.07,0.1]
[1767874292201,0.04750684,134.13,134.07,0.1]
[1767874292776,2.27873079,134.12,134.07,0.1]
[1767874292975,2.32623763,134.13,134.07,2.37873079]
[1767874293176,7.50341615,134.13,134.07,0.1]
[1767874293408,9.78214694,134.13,134.07,0.1]
[1767874293585,2.27873079,134.12,134.07,0.1]
[1767874293784,2.27873079,134.12,134.08,0.69650864]
[1767874294180,7.50341615,134.13,134.08,0.69650864]
[1767874294384,2.27873079,134.12,134.08,0.69650864]
[1767874294583,2.27873079,134.1,134.07,0.1]
[1767874294793,0.04750684,134.11,134.05,0.1]
[1767874294794,2.27873079,134.08,134.05,0.1]
[1767874294991,0.33182998,134.1,134.05,0.79650864]
[1767874295184,15.89873079,134.11,134.07,0.69650864]
[1767874295500,7.45636469,134.12,134.08,0.69650864]
[1767874295690,9.78260232,134.12,134.08,0.69650864]
[1767874295884,7.50387153,134.12,134.08,0.69650864]
[1767874296088,9.78260232,134.12,134.08,0.69650864]
[1767874296691,2.27873079,134.11,134.07,0.69650864]
[1767874296889,7.50387153,134.12,134.07,0.69650864]
[1767874297289,28.42262617,134.12,134.07,0.69650864]
[1767874297490,28.42262617,134.12,134.08,0.69650864]
[1767874297491,9.73509548,134.12,134.08,0.69650864]
[1767874297686,7.45636469,134.12,134.08,0.69650864]
[1767874297890,7.50387153,134.12,134.07,0.69650864]
[1767874298193,2.27873079,134.11,134.07,0.69650864]
[1767874298396,2.27873079,134.1,134.06,0.69650864]
[1767874298787,0.04750684,134.11,134.06,0.69650864]
[1767874299187,2.27873079,134.1,134.06,0.69650864]
[1767874299799,9.73639558,134.1,134.06,0.69650864]
[1767874300195,7.50380798,134.12,134.07,2.97523943]
[1767874300498,9.78253877,134.12,134.07,0.69650864]
[1767874300702,21.12308508,134.13,134.07,0.69650864]
[1767874301298,2.27873079,134.12,134.07,0.69650864]
[1767874301508,21.12308508,134.13,134.08,0.69650864]
[1767874301688,13.62,134.13,134.09,0.69650864]
[1767874302202,9.73380581,134.14,134.09,0.69650864]
[1767874302503,2.27873079,134.14,134.09,0.69650864]
[1767874302705,0.04750684,134.14,134.09,0.69650864]
[1767874303002,2.32623763,134.14,134.09,0.69650864]
[1767874303205,0.04750684,134.14,134.09,0.69650864]
[1767874303398,2.27873079,134.13,134.09,0.69650864]
[1767874303893,7.50254021,134.14,134.05,14.00432314]
[1767874303894,2.32623763,134.1,134.05,0.1]
[1767874304095,0.28432314,134.12,134.05,0.79650864]
[1767874304400,13.62,134.13,134.08,0.69650864]
[1767874304608,2.27873079,134.12,134.08,0.69650864]
[1767874305206,13.62,134.13,134.08,0.69650864]
[1767874305401,2.27873079,134.12,134.08,0.69650864]
[1767874305609,21.07555295,134.13,134.08,0.69650864]
[1767874305803,23.35428374,134.13,134.08,0.69650864]
[1767874306106,2.27873079,134.12,134.08,0.69650864]
[1767874306301,21.07555295,134.13,134.08,0.69650864]
[1767874306506,23.35428374,134.13,134.08,0.69650864]
[1767874306740,7.45600954,134.12,134.09,0.69650864]
[1767874307011,23.35436266,134.13,134.09,0.69650864]
[1767874307704,2.27873079,134.11,134.08,0.69650864]
[1767874307882,2.27873079,134.12,134.08,0.69650864]
[1767874308087,21.07563187,134.13,134.08,0.69650864]
[1767874309005,23.35436266,134.13,134.09,0.69650864]
[1767874309513,23.35436266,134.13,134.08,0.69650864]
[1767874309710,2.27873079,134.12,134.05,0.1]
[1767874310006,2.27873079,134.1,134.06,0.69650864]
[1767874310191,39.71426603,134.13,134.07,0.69650864]
[1767874310397,2.27873079,134.11,134.07,0.69650864]
[1767874311595,41.99299682,134.13,134.08,0.69650864]
[1767874311907,21.07563187,134.13,134.08,2.97523943]
[1767874312116,21.07563187,134.13,134.09,0.69650864]
[1767874312316,7.45563187,134.13,134.09,0.69650864]
[1767874312510,18.63642455,134.15,134.09,0.69650864]
[1767874312511,9.73374691,134.14,134.1,0.69650864]
[1767874312712,21.07454295,134.15,134.11,0.69650864]
[1767874313011,23.35327374,134.15,134.11,0.69650864]
[1767874314202,21.07454295,134.15,134.11,0.69650864]
[1767874314402,23.35327374,134.15,134.11,0.69650864]
[1767874314618,26.67268678,134.15,134.11,0.69650864]